bitfinex-derivatives/quotes_ETHF0:USTF0_20260128
["timestamp","ask_amount","ask_price","bid_price","bid_amount"]
[1769584719748,3.12113195,3010.0,3009.3,0.14871478]
[1769584719947,0.00165748,3010.1,3009.3,0.14871478]
[1769584720147,3.12113221,3010.0,3009.3,0.14871478]
[1769584720335,0.00165748,3010.1,3009.3,0.14871478]
[1769584720541,3.12102188,3010.0,3009.3,0.14871478]
[1769584720841,0.00165748,3010.1,3009.3,0.14871478]
[1769584721042,3.12101573,3010.0,3009.3,0.14871478]
[1769584721347,0.00165748,3010.1,3009.3,0.14871478]
[1769584721548,3.1209097,3010.0,3009.3,0.14871478]
[1769584721754,0.00165748,3010.1,3009.3,0.14871478]
[1769584721948,3.12090988,3010.0,3009.3,0.14871478]
[1769584722248,0.00165748,3010.1,3009.3,0.14871478]
[1769584722450,3.12085509,3010.0,3009.3,0.14871478]
[1769584722648,0.00165748,3010.1,3009.3,0.14871478]
[1769584722849,3.12085535,3010.0,3009.3,0.14871478]
[1769584723149,0.00165748,3010.1,3009.3,0.14871478]
[1769584723350,3.12083177,3010.0,3009.3,0.14871478]
[1769584723650,0.00165748,3010.1,3009.3,0.14871478]
[1769584723851,3.1208346,3010.0,3009.3,0.14871478]
[1769584724050,0.00165748,3010.1,3009.3,0.14871478]
[1769584724350,3.12090454,3010.0,3009.3,0.14871478]
[1769584724651,0.00244624,3010.3,3009.3,0.14871478]
[1769584724857,3.12090571,3010.2,3009.3,0.14871478]
[1769584725152,3.12090571,3010.1,3009.3,0.14871478]
[1769584725339,0.16632,3010.5,3009.6,1.46095626]
[1769584725549,3.12103089,3010.4,3009.9,0.14857117]
[1769584725749,3.12103089,3010.3,3009.9,0.14857117]
[1769584725942,0.00263248,3010.6,3009.9,0.14857117]
[1769584726148,3.12122716,3010.5,3009.9,0.14857117]
[1769584726346,3.12122716,3010.4,3009.9,0.14857117]
[1769584726546,3.12122716,3010.3,3009.9,0.14857117]
[1769584726749,0.00475021,3010.6,3009.9,0.14857117]
[1769584726946,1.46307399,3010.3,3009.5,0.14857187]
[1769584727150,1.46307399,3010.1,3009.1,0.14857187]
[1769584727452,0.00211773,3010.1,3009.1,0.14857187]
[1769584728056,1.46422404,3010.3,3009.1,0.14857187]
[1769584728256,3.12043114,3010.2,3009.1,0.14857187]
[1769584728448,1.46422404,3010.3,3009.1,0.14857187]
[1769584728648,3.12038332,3010.2,3009.1,0.14857187]
[1769584728848,3.12038332,3010.1,3009.1,0.14857187]
[1769584729048,1.46422404,3010.3,3009.1,0.14857187]
[1769584729357,3.1204897,3010.2,3009.1,0.14857187]
[1769584729648,3.1204897,3010.1,3009.1,0.14857187]
[1769584729853,1.46422404,3010.3,3009.1,0.14857187]
[1769584730056,3.12048995,3010.2,3009.1,0.14857187]
[1769584730257,3.12048995,3010.1,3009.1,0.14857187]
[1769584730455,0.0014319,3010.2,3009.1,0.14857187]
[1769584730754,3.12203763,3010.1,3009.1,0.14857187]
[1769584731054,0.0014319,3010.1,3009.1,0.14857187]
[1769584731756,0.00080455,3010.0,3009.1,0.14857187]
[1769584732759,1.46095626,3009.9,3009.1,0.14857187]
[1769584733057,1.46095626,3010.1,3009.1,0.14857187]
[1769584733256,3.12125029,3010.0,3009.1,0.14857187]
[1769584733451,1.46095626,3009.7,3009.1,0.14857187]
[1769584733656,1.46390882,3009.7,3009.1,0.14857187]
[1769584734159,1.46390882,3009.7,3008.5,1.46095626]
[1769584734859,0.13676845,3009.5,3008.3,8.89335452]
[1769584736059,0.13676845,3009.5,3008.3,3.90495626]
[1769584736261,0.13676845,3009.5,3008.4,0.1485215]
[1769584740457,0.13676845,3009.4,3008.4,0.1485215]
[1769584742464,1.59772471,3009.1,3008.4,0.1485215]
[1769584742658,0.13676845,3009.1,3008.4,0.1485215]
[1769584743264,0.13676845,3009.1,3008.1,0.1485215]
[1769584745067,0.13676845,3009.1,3008.2,0.1485215]
[1769584745363,0.13676845,3009.4,3008.2,0.1485215]
[1769584746866,0.13676845,3009.2,3008.2,0.1485215]
[1769584747860,1.46095626,3009.0,3008.2,0.1485215]
[1769584748059,0.13676845,3009.2,3008.2,0.1485215]
[1769584748260,1.59772471,3009.4,3008.2,0.1485215]
[1769584748566,3.2495572,3009.3,3008.2,0.1485215]
[1769584748861,0.13676845,3009.3,3008.2,0.1485215]
[1769584752861,1.46095626,3009.4,3008.2,0.1485215]
[1769584753166,0.13676845,3009.3,3008.2,0.1485215]
[1769584753568,0.30314845,3009.5,3008.6,0.1485215]
[1769584753774,3.11112833,3009.4,3008.6,0.1485215]
[1769584753959,0.13676845,3009.9,3008.8,0.1485215]
[1769584754166,3.11145931,3009.8,3009.0,0.1485215]
[1769584754361,0.13676845,3010.0,3009.0,0.1485215]
[1769584754562,0.13676845,3009.8,3009.0,0.1485215]
[1769584755058,0.13676845,3009.7,3009.0,0.1485215]
[1769584755258,0.13676845,3009.7,3008.6,0.1485215]
[1769584767473,0.14208903,3010.0,3008.6,0.1485215]
[1769584767674,3.11776288,3009.9,3008.6,0.1485215]
[1769584767870,3.11776288,3009.8,3008.6,0.1485215]
[1769584768065,3.11776288,3009.7,3008.6,0.1485215]
[1769584768369,0.14208903,3009.9,3008.6,0.1485215]
[1769584768567,3.1177143,3009.8,3008.6,0.1485215]
[1769584768867,3.1177143,3009.7,3008.6,0.1485215]
[1769584769067,0.14208903,3009.8,3008.6,0.1485215]
[1769584769270,3.11765898,3009.7,3008.6,0.1485215]
[1769584769571,0.14208903,3009.8,3008.6,0.1485215]
[1769584769775,3.11774178,3009.7,3008.6,0.1485215]
[1769584770082,0.14208903,3009.8,3008.6,0.1485215]
[1769584770270,3.1179396,3009.7,3008.6,0.1485215]
[1769584770569,0.14208903,3009.8,3008.6,0.1485215]
[1769584770774,3.11815455,3009.7,3008.6,0.1485215]
[1769584770975,0.14208903,3009.8,3008.6,0.1485215]
[1769584771274,3.11805424,3009.7,3008.6,0.1485215]
[1769584771476,0.30842903,3010.1,3008.6,0.1485215]
[1769584771675,3.26018593,3010.0,3008.6,0.1485215]
[1769584771876,3.26018593,3009.9,3008.6,0.1485215]
[1769584772175,3.1180969,3009.8,3008.6,0.1485215]
[1769584774380,3.26018593,3009.8,3008.6,0.1485215]
[1769584774676,0.14208903,3009.8,3008.6,0.1485215]
[1769584775672,0.14208903,3009.8,3008.9,0.13453466]
[1769584775876,0.14208903,3010.5,3008.9,0.13453466]
[1769584776177,0.14208903,3010.3,3008.9,0.13453466]
[1769584776362,0.14208903,3010.1,3008.9,0.13453466]
[1769584776567,3.26021041,3010.0,3008.9,0.13453466]
[1769584776767,3.11812138,3009.9,3008.9,0.13453466]
[1769584776963,0.14208903,3010.0,3008.9,0.13453466]
[1769584777169,3.1180636,3009.9,3008.9,0.13453466]
[1769584777367,0.14208903,3010.0,3008.9,0.13453466]
[1769584777673,3.11818806,3009.9,3008.9,0.13453466]
[1769584777879,0.14208903,3010.0,3008.9,0.13453466]
[1769584778174,3.26027713,3009.9,3008.9,0.13453466]
[1769584778370,0.14208903,3009.9,3008.9,0.13453466]
[1769584779877,0.14208903,3009.9,3008.6,0.13453466]
[1769584780079,0.14208903,3009.7,3008.6,0.13453466]
[1769584780279,0.14208903,3009.5,3008.6,0.13453466]
[1769584782880,0.14208903,3009.3,3008.6,0.13453466]
[1769584787785,0.14208903,3009.8,3008.6,0.13453466]
[1769584787989,0.14208903,3009.6,3008.6,0.13453466]
[1769584788284,3.12641808,3009.5,3008.6,0.13453466]
[1769584788481,0.14208903,3009.8,3008.6,0.13453466]
[1769584788785,3.12650359,3009.7,3008.6,0.13453466]
[1769584788977,3.12650359,3009.6,3008.6,0.13453466]
[1769584789170,3.12650359,3009.5,3008.6,0.13453466]
[1769584789374,0.14208903,3009.7,3008.6,0.13453466]
[1769584789582,3.12648537,3009.6,3008.6,0.13453466]
[1769584789782,3.12648537,3009.5,3008.6,0.13453466]
[1769584789985,0.14208903,3009.9,3008.8,1.46111379]
[1769584790184,3.12668244,3009.8,3008.9,0.13453466]
[1769584790484,3.12668244,3009.7,3008.9,0.13453466]
[1769584790687,0.14208903,3009.8,3008.9,0.13453466]
[1769584790879,3.12664617,3009.7,3008.9,0.13453466]
[1769584791187,0.14208903,3009.8,3008.5,0.13453466]
[1769584791388,0.14208903,3009.6,3008.5,0.13453466]
[1769584797791,0.14208903,3009.6,3008.3,5.13635114]
[1769584797991,0.14208903,3009.6,3008.4,0.14795288]
[1769584800694,0.14265504,3010.2,3008.5,0.14795288]
[1769584800889,0.14265504,3010.0,3008.5,0.14795288]
[1769584801090,0.14265504,3009.8,3008.5,0.14795288]
[1769584801293,3.13459816,3009.7,3008.5,0.14795288]
[1769584804594,0.14265504,3010.3,3009.3,0.14795288]
[1769584804788,0.14265504,3010.1,3009.3,0.14795288]
[1769584808382,0.14265504,3010.1,3009.0,0.14795288]
[1769584825201,0.13550668,3010.5,3009.6,0.13874797]
[1769584825401,0.13550668,3010.3,3009.6,0.13874797]
[1769584825605,0.13550668,3010.1,3009.2,0.13874797]
[1769584828705,0.13550668,3009.9,3009.2,0.13874797]
[1769584830907,0.13550668,3009.7,3008.8,4.98839826]
[1769584831111,0.13550668,3009.5,3008.7,0.13874797]
[1769584836615,1.59616397,3009.3,3008.5,5.12714623]
[1769584836813,1.59616397,3009.3,3008.5,0.13874797]
[1769584837009,0.13550668,3009.3,3008.5,0.13874797]
[1769584837410,0.13550668,3009.2,3008.3,5.12714623]
[1769584837711,0.13550668,3009.2,3008.3,0.13874797]
[1769584843614,1.59616397,3009.1,3008.3,0.13874797]
[1769584844810,0.13550668,3009.0,3008.1,0.13874797]
[1769584845218,0.13550668,3009.4,3008.3,0.13874797]
[1769584848725,0.13550668,3009.2,3008.3,0.13874797]
[1769584855942,0.13550668,3009.2,3008.4,1.46065729]
[1769584856145,0.13550668,3009.2,3008.4,1.59806863]
[1769584857144,0.13550668,3009.2,3008.5,0.13741134]
[1769584860745,0.13430174,3009.5,3008.5,0.13741134]
[1769584860949,3.12912848,3009.4,3008.7,0.13741134]
[1769584861145,0.13430174,3009.5,3008.7,0.13741134]
[1769584861346,3.13141369,3009.4,3008.7,0.13741134]
[1769584861547,3.13141369,3009.3,3008.7,0.13741134]
[1769584861747,0.13430174,3009.5,3008.7,0.13741134]
[1769584862056,0.13430174,3009.7,3008.9,0.13741134]
[1769584862244,0.13430174,3009.7,3008.0,5.15743415]
[1769584862245,3.13111914,3009.6,3009.1,0.13741134]
[1769584862444,0.13430174,3009.9,3009.1,0.13741134]
[1769584862643,3.13182082,3009.8,3009.1,0.13741134]
[1769584862843,3.13182082,3009.7,3009.1,0.13741134]
[1769584863048,0.13430174,3009.8,3009.1,0.13741134]
[1769584863245,3.13972413,3009.7,3009.1,0.13741134]
[1769584863447,0.13430174,3009.8,3009.1,0.13741134]
[1769584863646,3.14016464,3009.7,3009.1,0.13741134]
[1769584863848,0.13430174,3009.8,3009.1,0.13741134]
[1769584864150,3.14015567,3009.7,3009.1,0.13741134]
[1769584864352,0.13430174,3009.8,3009.1,0.13741134]
[1769584864555,3.14061888,3009.7,3009.1,0.13741134]
[1769584864755,0.13430174,3009.8,3009.1,0.13741134]
[1769584864950,3.14062077,3009.7,3009.1,0.13741134]
[1769584865147,0.13430174,3010.1,3009.3,0.13741134]
[1769584865347,3.27541638,3010.0,3009.3,0.13741134]
[1769584865546,3.14111464,3009.9,3009.3,0.13741134]
[1769584865742,3.14111464,3009.8,3009.3,0.13741134]
[1769584865950,3.14111464,3009.7,3009.3,0.13741134]
[1769584866252,0.13430174,3010.0,3009.3,0.13741134]
[1769584866552,3.14166162,3009.9,3009.3,0.13741134]
[1769584866752,3.14166162,3009.8,3009.3,0.13741134]
[1769584866945,0.13430174,3010.0,3009.3,0.13741134]
[1769584867141,3.14135715,3009.9,3009.3,0.13741134]
[1769584867353,3.14135715,3009.8,3009.3,0.13741134]
[1769584867553,0.13430174,3010.0,3009.3,0.13741134]
[1769584867854,3.14096024,3009.9,3009.3,0.13741134]
[1769584868153,0.13430174,3010.0,3009.3,0.13741134]
[1769584868353,3.14040764,3009.9,3009.3,0.13741134]
[1769584868655,0.13430174,3010.0,3009.3,0.13741134]
[1769584868853,3.14040751,3009.9,3009.3,0.13741134]
[1769584869056,0.13430174,3010.0,3009.3,0.13741134]
[1769584869354,3.14040751,3009.9,3009.3,0.13741134]
[1769584869655,0.13430174,3010.0,3009.3,0.13741134]
[1769584869848,3.1398603,3009.9,3009.3,0.13741134]
[1769584870044,0.13430174,3010.0,3009.3,0.13741134]
[1769584870251,3.13985995,3009.9,3009.3,0.13741134]
[1769584870455,0.13430174,3010.0,3009.3,0.13741134]
[1769584870650,3.13937908,3009.9,3009.3,0.13741134]
[1769584870858,0.13430174,3010.0,3009.3,0.13741134]
[1769584871154,0.13430174,3010.2,3009.5,0.13741134]
[1769584871359,3.27282929,3010.1,3009.5,0.13741134]
[1769584871551,0.13430174,3010.1,3009.5,0.13741134]
[1769584875154,0.13430174,3010.4,3009.5,0.13741134]
[1769584875459,0.13430174,3010.4,3009.7,0.13741134]
[1769584876053,3.13507064,3010.3,3009.7,0.13741134]
[1769584876254,0.13430174,3010.4,3009.7,0.13741134]
[1769584882459,0.13430174,3010.4,3009.4,0.13741134]
[1769584883455,0.13430174,3010.4,3009.1,0.13741134]
[1769584890854,0.13904656,3010.2,3009.1,0.13741134]
[1769584891062,0.13904656,3010.0,3009.1,0.13741134]
[1769584891462,1.62645834,3010.5,3009.1,0.13741134]
[1769584891463,0.13904656,3010.4,3009.1,0.13741134]
[1769584891767,0.13904656,3010.2,3009.1,0.13741134]
[1769584893469,0.13904656,3010.4,3009.1,0.13741134]
[1769584893664,3.13138538,3010.3,3009.1,0.13741134]
[1769584893869,0.13904656,3010.4,3009.1,0.13741134]
[1769584894170,3.27059318,3010.3,3009.1,0.13741134]
[1769584894473,0.13904656,3010.3,3009.1,0.13741134]
[1769584895674,0.16632,3010.5,3009.1,0.13741134]
[1769584895675,0.13904656,3010.1,3009.1,0.13741134]
[1769584898965,0.16632,3010.5,3009.1,0.13741134]
[1769584899167,0.13904656,3010.3,3009.1,0.13741134]
[1769584899366,0.13904656,3010.1,3009.1,0.13741134]
[1769584901172,0.16632,3010.5,3009.1,0.13741134]
[1769584901381,3.27423084,3010.4,3009.1,0.13741134]
[1769584901578,3.13518428,3010.3,3009.1,0.13741134]
[1769584902879,3.27423084,3010.3,3009.1,0.13741134]
[1769584903080,3.13518428,3010.2,3009.1,0.13741134]
[1769584904378,3.27423084,3010.2,3009.1,0.13741134]
[1769584904681,3.13518428,3010.1,3009.1,0.13741134]
[1769584905881,3.27423084,3010.1,3009.1,0.13741134]
[1769584906083,0.13904656,3010.1,3009.1,0.13741134]
[1769584912783,0.13904656,3010.4,3009.1,0.13741134]
[1769584912986,3.27550443,3010.3,3009.1,0.13741134]
[1769584913182,3.13645787,3010.2,3009.1,0.13741134]
[1769584913484,3.13656609,3010.1,3009.1,0.13741134]
[1769584913684,0.13904656,3010.3,3009.1,0.13741134]
[1769584913882,3.13656609,3010.2,3009.1,0.13741134]
[1769584914081,3.13656609,3010.1,3009.1,0.13741134]
[1769584914281,0.13904656,3010.3,3009.1,0.13741134]
[1769584914472,3.13659014,3010.2,3009.1,0.13741134]
[1769584914673,3.13659014,3010.1,3009.1,0.13741134]
[1769584914874,0.14188982,3010.2,3009.1,0.13741134]
[1769584915077,3.13659014,3010.1,3009.1,0.13741134]
[1769584915286,0.14188982,3010.2,3009.1,0.13741134]
[1769584915585,3.13661912,3010.1,3009.1,0.13741134]
[1769584915786,0.14188982,3010.2,3009.1,0.13741134]
[1769584915985,3.13661941,3010.1,3009.1,0.13741134]
[1769584916288,0.14188982,3010.2,3009.1,0.13741134]
[1769584916585,3.13664735,3010.1,3009.1,0.13741134]
[1769584916777,0.14188982,3010.2,3009.1,0.13741134]
[1769584916974,3.13664706,3010.1,3009.1,0.13741134]
[1769584917187,0.14188982,3010.2,3009.1,0.13741134]
[1769584917386,3.13668118,3010.1,3009.1,0.13741134]
[1769584917586,0.14188982,3010.2,3009.1,0.13741134]
[1769584917786,3.13668118,3010.1,3009.1,0.13741134]
[1769584917981,0.14188982,3010.2,3009.1,0.13741134]
[1769584918183,3.13668118,3010.1,3009.1,0.13741134]
[1769584918383,0.14188982,3010.2,3009.1,0.13741134]
[1769584918583,3.13671911,3010.1,3009.1,0.13741134]
[1769584918888,0.14188982,3010.2,3009.1,0.13741134]
[1769584919088,3.13672094,3010.1,3009.1,0.13741134]
[1769584919385,0.14188982,3010.2,3009.1,0.13741134]
[1769584919587,0.14188982,3010.0,3009.1,0.13741134]
[1769584925396,0.14188982,3009.8,3008.8,0.1358518]
[1769584925597,0.14188982,3009.6,3008.8,0.1358518]
[1769584927196,0.14188982,3009.6,3008.4,0.1358518]
[1769584927396,0.14188982,3009.6,3008.6,0.1358518]
[1769584929886,0.14188982,3009.6,3008.4,0.1358518]
[1769584930091,0.14188982,3009.4,3008.4,0.1358518]
[1769584934099,0.14188982,3009.4,3008.1,0.1358518]
[1769584937600,0.14188982,3009.4,3008.2,0.1358518]
[1769584940898,0.14188982,3009.4,3008.0,0.00257589]
[1769584941099,0.14188982,3008.0,3007.1,0.1358518]
[1769584941997,0.14188982,3008.0,3007.1,0.13905818]
[1769584941998,0.14549996,3008.0,3007.1,0.13905818]
[1769584942199,0.14188982,3007.8,3006.8,0.1358518]
[1769584943403,0.14188982,3007.8,3006.8,0.13842638]
[1769584943900,0.14549996,3008.0,3007.0,0.1358518]
[1769584946207,0.00361014,3008.0,3007.0,0.1358518]
[1769584946398,0.14056653,3008.0,3007.0,0.1358518]
[1769584946600,0.14056653,3008.0,3007.1,1.60662635]
[1769584947203,0.14056653,3008.0,3007.2,0.14522469]
[1769584948609,0.14056653,3008.0,3006.8,0.14779927]
[1769584948610,0.13695639,3007.8,3006.8,0.14779927]
[1769584949498,0.13695639,3007.8,3006.8,0.00257458]
[1769584950098,0.13695639,3007.8,3006.9,0.14522469]
[1769584956810,0.14056653,3008.0,3007.1,0.14522469]
[1769584957013,0.14056653,3008.0,3007.3,0.14522469]
[1769584957413,0.00361014,3008.0,3007.3,0.14522469]
[1769584959410,0.00361014,3008.0,3007.4,1.60662635]
[1769584960114,0.00361014,3008.0,3007.4,0.14522469]
[1769584961716,0.14056653,3008.0,3007.4,0.14522469]
[1769584961914,0.14056653,3008.0,3007.2,1.60662635]
[1769584962618,0.14056653,3008.0,3007.3,0.14522469]
[1769584964517,0.00361014,3008.0,3007.3,0.14522469]
[1769584968919,0.13695639,3008.2,3007.3,0.14522469]
[1769584969117,0.13695639,3008.2,3007.5,0.14522469]
[1769584970718,0.13695639,3008.2,3007.2,1.60662635]
[1769584971812,0.13695639,3008.2,3007.3,0.14522469]
[1769584976926,0.1399629,3008.4,3007.6,1.46140166]
[1769584977122,3.17617594,3008.3,3007.7,0.14803811]
[1769584977322,3.17617594,3008.2,3007.7,0.14803811]
[1769584977629,0.1399629,3008.4,3007.7,0.14803811]
[1769584977928,3.17593296,3008.3,3007.7,0.14803811]
[1769584978127,3.17593296,3008.2,3007.7,0.14803811]
[1769584978327,0.1399629,3008.4,3007.7,0.14803811]
[1769584978523,3.17574283,3008.3,3007.7,0.14803811]
[1769584978724,3.17574283,3008.2,3007.7,0.14803811]
[1769584978925,0.1399629,3008.4,3007.7,0.14803811]
[1769584979125,3.17535143,3008.3,3007.7,0.14803811]
[1769584979325,3.17535143,3008.2,3007.7,0.14803811]
[1769584979531,0.1399629,3008.4,3007.7,0.14803811]
[1769584979730,3.17540574,3008.3,3007.7,0.14803811]
[1769584980029,3.17540574,3008.2,3007.7,0.14803811]
[1769584980226,0.1399629,3008.4,3007.7,0.14803811]
[1769584980525,3.17556499,3008.3,3007.7,0.14803811]
[1769584980725,3.17556499,3008.2,3007.7,0.14803811]
[1769584980926,0.1399629,3008.4,3007.7,0.14803811]
[1769584981227,3.31526279,3008.3,3007.7,0.14803811]
[1769584981530,3.31526279,3008.2,3007.7,0.14803811]
[1769584981730,0.1399629,3008.2,3007.7,0.14803811]
[1769584982529,0.1399629,3008.6,3007.7,0.14803811]
[1769584982734,0.1399629,3008.4,3007.7,0.14803811]
[1769584982921,3.17560152,3008.3,3007.7,0.14803811]
[1769584983126,0.1399629,3008.1,3007.3,0.14803811]
[1769584983321,0.1399629,3008.1,3007.0,6.59783803]
[1769584983524,0.1399629,3008.1,3007.1,0.14803811]
[1769584986235,0.1399629,3008.1,3007.2,0.14803811]
[1769584991752,0.14387885,3008.1,3007.2,0.15235683]
[1769584994845,0.00391595,3008.1,3007.5,0.14803811]
[1769584995043,0.1399629,3008.7,3008.0,0.14803811]
[1769584995244,3.31694582,3008.6,3008.0,0.14803811]
[1769584995449,3.31694582,3008.5,3008.0,0.14803811]
[1769584995649,0.1399629,3008.5,3008.0,0.14803811]
[1769584995948,0.00266913,3008.5,3008.0,0.14803811]
[1769584999953,3.0283729,3009.0,3008.0,0.14803811]
[1769585000158,3.17446203,3008.9,3008.0,0.14803811]
[1769585000453,3.17446203,3008.8,3008.0,0.14803811]
[1769585000649,3.17446203,3008.7,3008.0,0.14803811]
[1769585000850,3.0283729,3009.0,3008.0,0.14803811]
[1769585001052,0.1399629,3008.8,3008.0,0.14803811]
[1769585001248,3.17379445,3008.7,3008.0,0.14803811]
[1769585001450,0.1399629,3008.8,3008.0,0.14803811]
[1769585001649,3.17322615,3008.7,3008.0,0.14803811]
[1769585001852,0.1399629,3008.8,3008.0,0.14803811]
[1769585002156,3.17322557,3008.7,3008.0,0.14803811]
[1769585002455,2.72594583,3009.0,3008.0,0.14803811]
[1769585002654,3.17303577,3008.9,3008.0,0.14803811]
[1769585002856,2.72594583,3009.0,3008.0,0.14803811]
[1769585003051,3.17314132,3008.9,3008.0,0.14803811]
[1769585003251,2.86590873,3009.0,3008.0,0.14803811]
[1769585004655,0.00394583,3009.0,3008.0,0.14803811]
[1769585016358,0.1505017,3009.0,3008.0,0.14803811]
[1769585028367,0.00394583,3009.0,3008.0,0.14803811]
[1769585029171,3.16773178,3008.9,3008.0,0.14803811]
[1769585029469,0.00394583,3009.0,3008.0,0.14803811]
[1769585029672,3.16773236,3008.9,3008.0,0.14803811]
[1769585029968,0.00394583,3009.0,3008.0,0.14803811]
[1769585030163,3.1676195,3008.9,3008.0,0.14803811]
[1769585030362,0.00394583,3009.0,3008.0,0.14803811]
[1769585030562,3.16805285,3008.9,3008.0,0.14803811]
[1769585030763,0.00394583,3009.0,3008.0,0.14803811]
[1769585030963,3.16804989,3008.9,3008.0,0.14803811]
[1769585031163,0.00394583,3009.0,3008.0,0.14803811]
[1769585031369,3.16857935,3008.9,3008.0,0.14803811]
[1769585031571,0.00394583,3009.0,3008.0,0.14803811]
[1769585031772,3.16857935,3008.9,3008.0,0.14803811]
[1769585031968,0.00394583,3009.0,3008.0,0.14803811]
[1769585032272,3.16857913,3008.9,3008.0,0.14803811]
[1769585032473,0.00394583,3009.0,3008.0,0.14803811]
[1769585032660,3.16953439,3008.9,3008.0,0.14803811]
[1769585032865,3.16953439,3008.8,3008.0,0.14803811]
[1769585033066,0.00394583,3009.0,3008.0,0.14803811]
[1769585033266,3.16947233,3008.9,3008.0,0.14803811]
[1769585033466,3.16947233,3008.8,3008.0,0.14803811]
[1769585033675,0.00394583,3009.0,3008.0,0.14803811]
[1769585033875,3.1695414,3008.9,3008.0,0.14803811]
[1769585034176,3.1695414,3008.8,3008.0,0.14803811]
[1769585034474,0.00394583,3009.0,3008.0,0.14803811]
[1769585034674,3.16947065,3008.9,3008.0,0.14803811]
[1769585034972,3.16947065,3008.8,3008.0,0.14803811]
[1769585035174,0.00394583,3009.0,3008.0,0.14803811]
[1769585035373,3.16934057,3008.9,3008.0,0.14803811]
[1769585035675,3.16934057,3008.8,3008.0,0.14803811]
[1769585035877,0.00394583,3009.0,3008.0,0.14803811]
[1769585036174,3.16934324,3008.9,3008.0,0.14803811]
[1769585036374,3.16934324,3008.8,3008.0,0.14803811]
[1769585036577,0.14881868,3009.0,3008.0,0.14803811]
[1769585036774,3.16920769,3008.9,3008.0,0.14803811]
[1769585036974,3.16920769,3008.8,3008.0,0.14803811]
[1769585037177,0.14881868,3009.0,3008.0,0.14803811]
[1769585037376,3.16909125,3008.9,3008.0,0.14803811]
[1769585037576,3.16909125,3008.8,3008.0,0.14803811]
[1769585037876,0.14881868,3009.0,3008.0,0.14803811]
[1769585038177,3.16909846,3008.9,3008.0,0.14803811]
[1769585038376,3.16909846,3008.8,3008.0,0.14803811]
[1769585038578,0.14881868,3009.0,3008.0,0.14803811]
[1769585038775,3.16900561,3008.9,3008.0,0.14803811]
[1769585038975,3.16900561,3008.8,3008.0,0.14803811]
[1769585039271,0.14881868,3009.0,3008.0,0.14803811]
[1769585039476,3.16893256,3008.9,3008.0,0.14803811]
[1769585039671,3.16893256,3008.8,3008.0,0.14803811]
[1769585039870,0.14487285,3008.9,3008.0,0.14803811]
[1769585040078,3.1689332,3008.8,3008.0,0.14803811]
[1769585040272,0.14487285,3008.9,3008.0,0.14803811]
[1769585040578,3.31384029,3008.8,3008.0,0.14803811]
[1769585040778,0.14487285,3008.8,3008.0,0.14803811]
[1769585041674,0.14487285,3008.8,3007.7,5.13037121]
[1769585041875,0.14487285,3008.8,3007.6,2.5]
[1769585041876,0.14487285,3008.6,3007.8,0.14197295]
[1769585042076,3.1684045,3008.7,3007.8,0.14197295]
[1769585042077,3.1684045,3008.5,3007.8,0.14197295]
[1769585042377,0.14487285,3008.7,3007.8,0.14197295]
[1769585042580,3.16677548,3008.6,3007.8,0.14197295]
[1769585042877,3.16677548,3008.5,3007.8,0.14197295]
[1769585043076,0.14487285,3008.7,3007.8,0.14197295]
[1769585043278,3.17111678,3008.6,3007.8,0.14197295]
[1769585043473,3.17111678,3008.5,3007.8,0.14197295]
[1769585043676,0.14487285,3008.7,3007.8,0.14197295]
[1769585043879,3.31598411,3008.6,3007.8,0.14197295]
[1769585044079,3.17111126,3008.5,3007.8,0.14197295]
[1769585046281,0.14487285,3008.6,3007.8,0.14197295]
[1769585052285,0.14487285,3008.6,3007.4,0.14197295]
[1769585056191,0.14487285,3008.4,3007.4,0.14197295]
[1769585068310,1.60716514,3008.4,3007.4,0.14197295]
[1769585068610,0.13893667,3008.3,3007.4,0.14197295]
[1769585070504,0.13893667,3008.5,3007.7,0.14355892]
[1769585070803,3.17702439,3008.4,3007.7,0.14355892]
[1769585071003,3.17877874,3008.3,3007.7,0.14355892]
[1769585071304,0.13893667,3008.5,3007.7,0.14355892]
[1769585071609,3.17855041,3008.4,3007.7,0.14355892]
[1769585071910,3.17855041,3008.3,3007.7,0.14355892]
[1769585072102,0.13893667,3008.5,3007.7,0.14355892]
[1769585072299,3.17856233,3008.4,3007.7,0.14355892]
[1769585072503,3.17856233,3008.3,3007.7,0.14355892]
[1769585072704,0.13893667,3008.5,3007.7,0.14355892]
[1769585073008,3.19352844,3008.4,3007.7,0.14355892]
[1769585073207,3.19352844,3008.3,3007.7,0.14355892]
[1769585073409,0.13893667,3008.5,3007.7,0.14355892]
[1769585073712,3.19348809,3008.4,3007.7,0.14355892]
[1769585073911,3.19348809,3008.3,3007.7,0.14355892]
[1769585074116,0.13893667,3008.5,3007.7,0.14355892]
[1769585074410,3.33242342,3008.4,3007.7,0.14355892]
[1769585074610,3.19348675,3008.3,3007.7,0.14355892]
[1769585074814,0.13893667,3008.4,3007.7,0.14355892]
[1769585075012,3.19348683,3008.3,3007.7,0.14355892]
[1769585075201,0.13893667,3008.4,3007.7,0.14355892]
[1769585075403,3.19349518,3008.3,3007.7,0.14355892]
[1769585075604,0.13893667,3008.4,3007.7,0.14355892]
[1769585075811,3.19349357,3008.3,3007.7,0.14355892]
[1769585076011,0.13893667,3008.4,3007.7,0.14355892]
[1769585076215,3.19349219,3008.3,3007.7,0.14355892]
[1769585076412,0.13893667,3008.4,3007.7,0.14355892]
[1769585076614,3.19349822,3008.3,3007.7,0.14355892]
[1769585076916,0.13893667,3008.4,3007.7,0.14355892]
[1769585077209,0.13893667,3008.2,3007.5,0.14355892]
[1769585077519,0.13893667,3008.2,3007.3,0.14355892]
[1769585080418,0.13893667,3008.0,3007.2,0.00431872]
[1769585081313,0.13893667,3008.0,3007.2,0.14787764]
[1769585084422,0.13893667,3008.3,3007.5,0.14355892]
[1769585084611,3.3320936,3008.2,3007.5,0.14355892]
[1769585084812,3.3320936,3008.1,3007.5,0.14355892]
[1769585085015,0.13893667,3008.1,3007.5,0.14355892]
[1769585086022,0.13893667,3008.1,3007.3,0.14355892]
[1769585087326,0.13893667,3008.3,3007.3,0.14355892]
[1769585087517,3.33132892,3008.2,3007.3,0.14355892]
[1769585087718,3.19239225,3008.1,3007.3,0.14355892]
[1769585088222,3.33132892,3008.1,3007.3,0.14355892]
[1769585088417,0.13893667,3008.1,3007.3,0.14355892]
[1769585101035,0.13605203,3008.5,3007.7,0.14308083]
[1769585101234,3.19216707,3008.4,3007.7,0.14308083]
[1769585101537,0.13605203,3008.7,3008.1,0.14308083]
[1769585101725,0.13605203,3008.9,3008.1,0.14308083]
[1769585102940,0.13605203,3008.8,3007.9,0.14308083]
[1769585103239,0.13605203,3008.6,3007.9,0.14308083]
[1769585103531,0.13605203,3008.6,3007.4,1.46229229]
[1769585103532,0.13605203,3008.2,3007.5,0.14308083]
[1769585104331,0.13605203,3008.4,3007.5,0.14308083]
[1769585105534,0.13605203,3008.8,3007.7,0.14308083]
[1769585112444,0.13999786,3009.0,3007.9,0.14308083]
[1769585113649,0.13605203,3008.8,3007.9,0.14308083]
[1769585113848,0.13605203,3008.6,3007.9,0.14308083]
[1769585114039,3.1276464,3008.5,3007.9,0.14308083]
[1769585119057,3.1276464,3008.4,3007.9,0.14308083]
[1769585119348,0.13605203,3008.8,3007.9,0.14308083]